[Event "Live Chess"]
[Site "Chess.com"]
[Date "2023.05.21"]
[Round "-"]
[White "stevochess11"]
[Black "BJAW87"]
[Result "1-0"]
[WhiteElo "1666"]
[BlackElo "1460"]
[TimeControl "300"]
[EndTime "7:31:08 PDT"]
[Termination "stevochess11 won by resignation"]

1. d4 {[%clk 0:04:56.7]} 1... Nf6 {[%clk 0:04:58.8]} 2. Nf3 {[%clk 0:04:55.7]}
2... g6 {[%clk 0:04:58.2]} 3. Nc3 {[%clk 0:04:54.8]} 3... Bg7 {[%clk 0:04:57.6]}
4. e4 {[%clk 0:04:53.9]} 4... O-O {[%clk 0:04:56.9]} 5. Be3 {[%clk 0:04:52.8]}
5... d6 {[%clk 0:04:54.6]} 6. Qd2 {[%clk 0:04:52]} 6... Re8 {[%clk 0:04:52.9]}
7. O-O-O {[%clk 0:04:45.7]} 7... Nbd7 {[%clk 0:04:52.4]} 8. e5 {[%clk
0:04:40.9]} 8... dxe5 {[%clk 0:04:51.5]} 9. dxe5 {[%clk 0:04:40.1]} 9... Ng4
{[%clk 0:04:47.3]} 10. e6 {[%clk 0:04:30.5]} 10... fxe6 {[%clk 0:04:28.3]} 11.
Ng5 {[%clk 0:04:28.8]} 11... Nxe3 {[%clk 0:04:17]} 12. Nxe6 {[%clk 0:04:24.4]}
12... Nxd1 {[%clk 0:03:42.8]} 13. Qxd1 {[%clk 0:04:17.9]} 13... b6 {[%clk
0:03:24.3]} 14. Bc4 {[%clk 0:04:14.1]} 14... Kh8 {[%clk 0:03:20.8]} 15. Nxd8
{[%clk 0:04:10.6]} 15... Rxd8 {[%clk 0:03:20.7]} 16. Re1 {[%clk 0:04:07.7]}
16... e5 {[%clk 0:03:15.2]} 17. Bd5 {[%clk 0:04:05.3]} 17... Rb8 {[%clk
0:03:14.1]} 18. Nb5 {[%clk 0:03:51.5]} 18... a6 {[%clk 0:03:07.3]} 19. Nxc7
{[%clk 0:03:50.3]} 19... Bb7 {[%clk 0:03:04]} 20. Bxb7 {[%clk 0:03:47.1]} 20...
Rxb7 {[%clk 0:03:03.9]} 21. Ne6 {[%clk 0:03:46.2]} 21... Re8 {[%clk 0:02:57.5]}
22. Nxg7 {[%clk 0:03:43.6]} 22... Kxg7 {[%clk 0:02:57.4]} 23. f4 {[%clk
0:03:40.4]} 23... e4 {[%clk 0:02:55.1]} 24. Qd4+ {[%clk 0:03:37.7]} 24... Nf6
{[%clk 0:02:52.9]} 25. g4 {[%clk 0:03:32.5]} 25... Rd7 {[%clk 0:02:41.6]} 26.
Qc3 {[%clk 0:03:29.1]} 26... Kf7 {[%clk 0:02:35.3]} 27. g5 {[%clk 0:03:27.2]}
27... Nd5 {[%clk 0:02:34.5]} 28. Qb3 {[%clk 0:03:22.4]} 28... e3 {[%clk
0:02:22.9]} 29. c4 {[%clk 0:03:19.8]} 29... Nxf4 {[%clk 0:02:18.2]} 30. c5+
{[%clk 0:03:15]} 30... Kg7 {[%clk 0:02:15.4]} 31. Qc3+ {[%clk 0:03:09.6]} 31...
Kg8 {[%clk 0:02:14.1]} 32. Qc4+ {[%clk 0:03:07.9]} 32... Kf8 {[%clk 0:02:13]}
33. Qxf4+ {[%clk 0:03:06.4]} 33... Rf7 {[%clk 0:02:09.2]} 34. Qd6+ {[%clk
0:03:03.3]} 34... Rfe7 {[%clk 0:02:08.3]} 35. Rxe3 {[%clk 0:03:00.4]} 35... Kf7
{[%clk 0:02:07.7]} 36. Rf3+ {[%clk 0:02:59.1]} 36... Kg7 {[%clk 0:02:07.2]} 37.
Qf6+ {[%clk 0:02:57.2]} 37... Kg8 {[%clk 0:02:06.3]} 38. cxb6 {[%clk 0:02:51.2]}
38... Re1+ {[%clk 0:01:56.3]} 39. Kd2 {[%clk 0:02:47.4]} 39... R1e2+ {[%clk
0:01:54.5]} 40. Kd3 {[%clk 0:02:46.6]} 40... Rxb2 {[%clk 0:01:49.5]} 41. Qxb2
{[%clk 0:02:42.8]} 41... Rd8+ {[%clk 0:01:48.2]} 42. Kc4 {[%clk 0:02:41.1]} 1-0

[Event "Live Chess"]
[Site "Chess.com"]
[Date "2023.05.21"]
[Round "-"]
[White "Mugzwang"]
[Black "Leonid_Starozhilov"]
[Result "0-1"]
[WhiteElo "1447"]
[BlackElo "2637"]
[TimeControl "300"]
[EndTime "7:31:14 PDT"]
[Termination "Leonid_Starozhilov won by resignation"]

1. Nf3 {[%clk 0:04:55.8]} 1... Nf6 {[%clk 0:04:53.6]} 2. c4 {[%clk 0:04:52.4]}
2... g6 {[%clk 0:04:33]} 3. Nc3 {[%clk 0:04:48.5]} 3... Bg7 {[%clk 0:04:32.5]}
4. g3 {[%clk 0:04:46.7]} 4... O-O {[%clk 0:04:32.4]} 5. Bg2 {[%clk 0:04:46]}
5... d6 {[%clk 0:04:31.9]} 6. O-O {[%clk 0:04:44.6]} 6... e5 {[%clk 0:04:31]} 7.
d3 {[%clk 0:04:41.6]} 7... Nc6 {[%clk 0:04:12.6]} 8. Bg5 {[%clk 0:04:37]} 8...
h6 {[%clk 0:04:09.9]} 9. Be3 {[%clk 0:04:33.2]} 9... Be6 {[%clk 0:04:04.8]} 10.
Qd2 {[%clk 0:04:22.6]} 10... Kh7 {[%clk 0:04:03.5]} 11. d4 {[%clk 0:04:04.6]}
11... Bxc4 {[%clk 0:03:59.7]} 12. dxe5 {[%clk 0:03:51.7]} 12... dxe5 {[%clk
0:03:58.2]} 13. Qxd8 {[%clk 0:03:49.9]} 13... Rfxd8 {[%clk 0:03:55]} 14. Rfd1
{[%clk 0:03:32.2]} 14... a6 {[%clk 0:03:48.2]} 15. b3 {[%clk 0:03:18.7]} 15...
Be6 {[%clk 0:03:46]} 16. Na4 {[%clk 0:03:10.2]} 16... Nd5 {[%clk 0:03:37.9]} 17.
Bd2 {[%clk 0:02:51.5]} 17... e4 {[%clk 0:03:34.7]} 18. Ne1 {[%clk 0:02:41.2]}
18... e3 {[%clk 0:03:30.6]} 19. fxe3 {[%clk 0:02:37.8]} 19... Bxa1 {[%clk
0:03:24.5]} 20. Rxa1 {[%clk 0:02:34.2]} 20... Nb6 {[%clk 0:03:21.1]} 21. Nc5
{[%clk 0:02:28.3]} 21... Rxd2 {[%clk 0:03:19.3]} 0-1

[Event "Live Chess"]
[Site "Chess.com"]
[Date "2023.05.21"]
[Round "-"]
[White "hturner40"]
[Black "EdenHazard8"]
[Result "1-0"]
[WhiteElo "1801"]
[BlackElo "1931"]
[TimeControl "300"]
[EndTime "7:31:16 PDT"]
[Termination "hturner40 won by resignation"]

1. Nf3 {[%clk 0:04:57.1]} 1... d5 {[%clk 0:04:58.9]} 2. g3 {[%clk 0:04:55.8]}
2... Nc6 {[%clk 0:04:58.1]} 3. d4 {[%clk 0:04:54]} 3... Bg4 {[%clk 0:04:54.7]}
4. Bg2 {[%clk 0:04:52.5]} 4... e6 {[%clk 0:04:52.1]} 5. c4 {[%clk 0:04:43]} 5...
Nf6 {[%clk 0:04:50.6]} 6. Ne5 {[%clk 0:04:40.5]} 6... Bf5 {[%clk 0:04:46.9]} 7.
Qa4 {[%clk 0:04:36.7]} 7... Qd6 {[%clk 0:04:37.1]} 8. c5 {[%clk 0:04:27]} 8...
Qd8 {[%clk 0:04:35.8]} 9. Nc3 {[%clk 0:04:00.3]} 9... Be7 {[%clk 0:04:31.7]} 10.
Nxc6 {[%clk 0:03:57.9]} 10... bxc6 {[%clk 0:04:31.6]} 11. Qxc6+ {[%clk
0:03:53.3]} 11... Nd7 {[%clk 0:04:31.5]} 12. e4 {[%clk 0:03:32.7]} 12... dxe4
{[%clk 0:04:27.7]} 13. Bxe4 {[%clk 0:03:31.4]} 13... Bxe4 {[%clk 0:04:25.7]} 14.
Nxe4 {[%clk 0:03:24.6]} 14... Bf6 {[%clk 0:04:24.4]} 1-0

[Event "Live Chess"]
[Site "Chess.com"]
[Date "2023.05.21"]
[Round "-"]
[White "sup3rm0nk3y"]
[Black "Bob2pen"]
[Result "0-1"]
[WhiteElo "1343"]
[BlackElo "1853"]
[TimeControl "300"]
[EndTime "7:31:27 PDT"]
[Termination "Bob2pen won by resignation"]

1. e4 {[%clk 0:04:59]} 1... e6 {[%clk 0:04:57.6]} 2. d4 {[%clk 0:04:57.6]} 2...
d5 {[%clk 0:04:56.8]} 3. e5 {[%clk 0:04:56.8]} 3... c5 {[%clk 0:04:55.8]} 4. c4
{[%clk 0:04:54.6]} 4... cxd4 {[%clk 0:04:51.8]} 5. Qxd4 {[%clk 0:04:49]} 5...
Nc6 {[%clk 0:04:49.6]} 6. Qd1 {[%clk 0:04:45.1]} 6... Nxe5 {[%clk 0:04:44.8]} 7.
cxd5 {[%clk 0:04:43]} 7... Qxd5 {[%clk 0:04:43.3]} 8. Qxd5 {[%clk 0:04:41.3]}
8... exd5 {[%clk 0:04:42.1]} 9. Bf4 {[%clk 0:04:33.9]} 9... Nc4 {[%clk
0:04:37.4]} 10. b3 {[%clk 0:04:13.2]} 10... Bd6 {[%clk 0:04:30.2]} 11. bxc4
{[%clk 0:04:05]} 11... Bxf4 {[%clk 0:04:27.6]} 12. cxd5 {[%clk 0:04:03.6]} 12...
Be5 {[%clk 0:04:24.4]} 13. Bb5+ {[%clk 0:03:55.5]} 13... Bd7 {[%clk 0:04:21.2]}
14. Bxd7+ {[%clk 0:03:53.9]} 14... Kxd7 {[%clk 0:04:19.7]} 15. Nf3 {[%clk
0:03:49.9]} 15... Bxa1 {[%clk 0:04:18]} 16. O-O {[%clk 0:03:49.1]} 16... Bf6
{[%clk 0:04:15.6]} 17. Nbd2 {[%clk 0:03:48.1]} 17... Ne7 {[%clk 0:04:14.1]} 18.
Ne4 {[%clk 0:03:43.7]} 18... Rac8 {[%clk 0:04:09.8]} 19. a4 {[%clk 0:03:41.2]}
19... Rc2 {[%clk 0:04:01.6]} 20. Ra1 {[%clk 0:03:35.2]} 20... Rhc8 {[%clk
0:03:59.4]} 21. Rf1 {[%clk 0:03:32.7]} 21... Rc1 {[%clk 0:03:56.9]} 22. g3
{[%clk 0:03:27.3]} 22... Nxd5 {[%clk 0:03:51.1]} 23. Nxf6+ {[%clk 0:03:22.9]}
23... Nxf6 {[%clk 0:03:49.6]} 24. Ne5+ {[%clk 0:03:21.8]} 24... Ke6 {[%clk
0:03:44.7]} 25. Nd3 {[%clk 0:03:19.6]} 25... Rxf1+ {[%clk 0:03:42.7]} 26. Kxf1
{[%clk 0:03:18.5]} 26... Rc3 {[%clk 0:03:40.1]} 27. Nf4+ {[%clk 0:03:16.9]}
27... Kd6 {[%clk 0:03:36.5]} 28. Ne2 {[%clk 0:03:14.9]} 28... Ra3 {[%clk
0:03:32.5]} 29. Nd4 {[%clk 0:03:13.4]} 29... Rxa4 {[%clk 0:03:27.5]} 30. Nf5+
{[%clk 0:03:12.3]} 30... Ke5 {[%clk 0:03:25.8]} 31. Nxg7 {[%clk 0:03:11.4]}
31... b5 {[%clk 0:03:25]} 32. h3 {[%clk 0:03:08.8]} 32... b4 {[%clk 0:03:24]}
0-1

[Event "Live Chess"]
[Site "Chess.com"]
[Date "2023.05.21"]
[Round "-"]
[White "YrrriKharkiv"]
[Black "BearFromUkraine"]
[Result "1-0"]
[WhiteElo "2058"]
[BlackElo "1072"]
[TimeControl "300"]
[EndTime "7:31:32 PDT"]
[Termination "YrrriKharkiv won by resignation"]

1. d4 {[%clk 0:04:56.3]} 1... d5 {[%clk 0:04:58.4]} 2. Nf3 {[%clk 0:04:54.7]}
2... Nf6 {[%clk 0:04:56.9]} 3. c4 {[%clk 0:04:54.2]} 3... e6 {[%clk 0:04:55.1]}
4. Nc3 {[%clk 0:04:52.7]} 4... Bb4 {[%clk 0:04:52.3]} 5. Qa4+ {[%clk 0:04:48.9]}
5... Nc6 {[%clk 0:04:49.9]} 6. Ne5 {[%clk 0:04:47.9]} 6... Bxc3+ {[%clk
0:04:48.1]} 7. bxc3 {[%clk 0:04:46.7]} 7... Bd7 {[%clk 0:04:44.4]} 8. Nxd7
{[%clk 0:04:45.3]} 8... Qxd7 {[%clk 0:04:41.9]} 9. e3 {[%clk 0:04:43.4]} 9...
O-O {[%clk 0:04:36.9]} 10. Rb1 {[%clk 0:04:40.2]} 10... Rab8 {[%clk 0:04:29.5]}
11. Bd3 {[%clk 0:04:27.4]} 11... Rfd8 {[%clk 0:04:17.3]} 12. cxd5 {[%clk
0:04:14.8]} 12... Nxd5 {[%clk 0:04:03.2]} 13. Bd2 {[%clk 0:04:12.9]} 13... e5
{[%clk 0:03:42.9]} 14. O-O {[%clk 0:04:06.6]} 14... exd4 {[%clk 0:03:41]} 15.
cxd4 {[%clk 0:04:05]} 15... a6 {[%clk 0:03:29]} 16. Qc2 {[%clk 0:04:02.8]} 16...
h6 {[%clk 0:03:26]} 17. Be4 {[%clk 0:03:50.4]} 17... Nf6 {[%clk 0:03:14.3]} 18.
Bf3 {[%clk 0:03:47.9]} 18... Qd6 {[%clk 0:02:55.2]} 19. Rfc1 {[%clk 0:03:42.4]}
19... a5 {[%clk 0:02:51.1]} 20. Qc5 {[%clk 0:03:28.5]} 20... Qxc5 {[%clk
0:02:45.8]} 21. Rxc5 {[%clk 0:03:25.5]} 21... Re8 {[%clk 0:02:29.9]} 22. Kf1
{[%clk 0:03:08.8]} 22... Ne4 {[%clk 0:02:23.4]} 23. Be1 {[%clk 0:03:07.8]} 23...
Nf6 {[%clk 0:02:03.1]} 24. Bc3 {[%clk 0:03:02.8]} 24... Re7 {[%clk 0:01:50.4]}
25. Rxc6 {[%clk 0:02:57.6]} 1-0

[Event "Live Chess"]
[Site "Chess.com"]
[Date "2023.05.21"]
[Round "-"]
[White "Crowded_House"]
[Black "wot-not"]
[Result "1-0"]
[WhiteElo "1609"]
[BlackElo "1528"]
[TimeControl "300"]
[EndTime "7:31:45 PDT"]
[Termination "Crowded_House won by resignation"]

1. d4 {[%clk 0:04:59.1]} 1... Nf6 {[%clk 0:04:49]} 2. Bg5 {[%clk 0:04:58.5]}
2... Ne4 {[%clk 0:04:47.8]} 3. Bh4 {[%clk 0:04:56.4]} 3... g5 {[%clk 0:04:46.9]}
4. Bg3 {[%clk 0:04:55.1]} 4... Nxg3 {[%clk 0:04:46.2]} 5. hxg3 {[%clk
0:04:53.7]} 5... Bg7 {[%clk 0:04:45.7]} 6. c3 {[%clk 0:04:52.1]} 6... c5 {[%clk
0:04:44.9]} 7. dxc5 {[%clk 0:04:49.3]} 7... O-O {[%clk 0:04:34.5]} 8. e3 {[%clk
0:04:42.9]} 8... a5 {[%clk 0:04:33.1]} 9. Bd3 {[%clk 0:04:38.5]} 9... h6 {[%clk
0:04:30.6]} 10. Nf3 {[%clk 0:04:35.5]} 10... Qc7 {[%clk 0:04:26.8]} 11. Qc2
{[%clk 0:04:33.1]} 11... Qxc5 {[%clk 0:04:24.2]} 12. Nbd2 {[%clk 0:04:21.5]}
12... d6 {[%clk 0:04:11.2]} 13. Nb3 {[%clk 0:04:17.2]} 13... Qb6 {[%clk
0:04:02]} 14. Rb1 {[%clk 0:04:01.7]} 14... Nd7 {[%clk 0:04:00.7]} 15. Bf5 {[%clk
0:03:57.5]} 15... Ne5 {[%clk 0:03:57]} 16. Bxc8 {[%clk 0:03:53.4]} 16... Nxf3+
{[%clk 0:03:55.7]} 17. gxf3 {[%clk 0:03:49.7]} 17... Raxc8 {[%clk 0:03:54.7]}
18. Nd4 {[%clk 0:03:38.4]} 18... Qd8 {[%clk 0:03:29.9]} 19. Nf5 {[%clk
0:03:32.8]} 19... e6 {[%clk 0:03:23.6]} 20. Nxh6+ {[%clk 0:03:22.1]} 20... Bxh6
{[%clk 0:03:19.3]} 21. Rxh6 {[%clk 0:03:20.8]} 21... f5 {[%clk 0:03:16.5]} 22.
Ke2 {[%clk 0:03:07]} 22... Qc7 {[%clk 0:02:58.6]} 23. Rbh1 {[%clk 0:03:04.4]}
23... Qc4+ {[%clk 0:02:57.5]} 24. Qd3 {[%clk 0:03:01.5]} 24... Qxd3+ {[%clk
0:02:52.6]} 25. Kxd3 {[%clk 0:03:00.3]} 25... Kf7 {[%clk 0:02:50]} 26. Rh7+
{[%clk 0:02:57.3]} 26... Ke8 {[%clk 0:02:49.1]} 27. Rxb7 {[%clk 0:02:56]} 27...
e5 {[%clk 0:02:43.7]} 28. Rhh7 {[%clk 0:02:52.8]} 28... Rf6 {[%clk 0:02:38.9]}
29. Rh8+ {[%clk 0:02:49.1]} 29... Rf8 {[%clk 0:02:38]} 30. Rhh7 {[%clk
0:02:42.6]} 30... Rf6 {[%clk 0:02:36.4]} 31. Rbe7+ {[%clk 0:02:41.2]} 31... Kf8
{[%clk 0:02:35]} 32. Rh8+ {[%clk 0:02:37.3]} 32... Kxe7 {[%clk 0:02:33.8]} 33.
Rxc8 {[%clk 0:02:36.4]} 33... d5 {[%clk 0:02:31]} 34. Ra8 {[%clk 0:02:32.3]}
34... e4+ {[%clk 0:02:28.8]} 35. fxe4 {[%clk 0:02:29.4]} 35... dxe4+ {[%clk
0:02:28.1]} 36. Ke2 {[%clk 0:02:27.6]} 36... Rb6 {[%clk 0:02:24.8]} 37. b3
{[%clk 0:02:23.7]} 37... Rc6 {[%clk 0:02:20.9]} 38. c4 {[%clk 0:02:22.7]} 38...
Rc5 {[%clk 0:02:18.9]} 39. a3 {[%clk 0:02:17.8]} 39... Ke6 {[%clk 0:02:14.8]}
40. Ra6+ {[%clk 0:02:16.3]} 40... Ke7 {[%clk 0:02:12.5]} 41. Rg6 {[%clk
0:02:12.3]} 41... g4 {[%clk 0:02:10.7]} 42. Rb6 {[%clk 0:02:09.1]} 42... Kd7
{[%clk 0:01:58.1]} 43. Rb5 {[%clk 0:02:07.8]} 43... Rc8 {[%clk 0:01:48.8]} 44.
Rxa5 {[%clk 0:02:05.3]} 44... Kc6 {[%clk 0:01:48]} 45. Rxf5 {[%clk 0:02:02.8]}
1-0

[Event "Live Chess"]
[Site "Chess.com"]
[Date "2023.05.21"]
[Round "-"]
[White "Pablo_dmp"]
[Black "Dhaydon19"]
[Result "0-1"]
[WhiteElo "1865"]
[BlackElo "2691"]
[TimeControl "300"]
[EndTime "7:31:46 PDT"]
[Termination "Dhaydon19 won by resignation"]

1. e4 {[%clk 0:04:58.9]} 1... c6 {[%clk 0:04:59.6]} 2. d4 {[%clk 0:04:57.5]}
2... d5 {[%clk 0:04:59.2]} 3. e5 {[%clk 0:04:57]} 3... c5 {[%clk 0:04:58.4]} 4.
dxc5 {[%clk 0:04:56.9]} 4... Nc6 {[%clk 0:04:57.4]} 5. f4 {[%clk 0:04:56.1]}
5... e6 {[%clk 0:04:56]} 6. Be3 {[%clk 0:04:53.7]} 6... Nge7 {[%clk 0:04:49.1]}
7. Nf3 {[%clk 0:04:51.9]} 7... Nf5 {[%clk 0:04:48.1]} 8. Bf2 {[%clk 0:04:51.1]}
8... Qa5+ {[%clk 0:04:45]} 9. c3 {[%clk 0:04:50.1]} 9... Bxc5 {[%clk 0:04:43.6]}
10. Qd2 {[%clk 0:03:41.2]} 10... Bxf2+ {[%clk 0:04:34.2]} 11. Qxf2 {[%clk
0:03:41.1]} 11... h5 {[%clk 0:04:28.4]} 12. Bd3 {[%clk 0:03:39.2]} 12... Nce7
{[%clk 0:04:22.2]} 13. Na3 {[%clk 0:03:28.9]} 13... Bd7 {[%clk 0:04:19.9]} 14.
O-O {[%clk 0:03:21.9]} 14... Rc8 {[%clk 0:04:17.2]} 15. Nc2 {[%clk 0:03:19.8]}
15... Bb5 {[%clk 0:04:13.4]} 16. Bxb5+ {[%clk 0:03:18.1]} 16... Qxb5 {[%clk
0:04:12.5]} 17. Ncd4 {[%clk 0:03:16.3]} 17... Qb6 {[%clk 0:04:10.7]} 18. Nxf5
{[%clk 0:03:13.1]} 18... Qxf2+ {[%clk 0:04:07.7]} 19. Rxf2 {[%clk 0:03:13]}
19... Nxf5 {[%clk 0:04:07]} 20. Nd4 {[%clk 0:03:11.2]} 20... Nxd4 {[%clk
0:04:05.6]} 21. cxd4 {[%clk 0:03:11.1]} 21... Rc4 {[%clk 0:04:03.7]} 22. Rd2
{[%clk 0:03:09.7]} 22... Kd7 {[%clk 0:04:01.8]} 23. Kf2 {[%clk 0:03:04]} 23...
Rhc8 {[%clk 0:03:59.7]} 24. Re1 {[%clk 0:03:01.5]} 24... Rc2 {[%clk 0:03:57.7]}
25. Ree2 {[%clk 0:03:01.1]} 25... Rxd2 {[%clk 0:03:56.6]} 26. Rxd2 {[%clk
0:03:01]} 26... f6 {[%clk 0:03:54.6]} 27. Ke3 {[%clk 0:02:40.6]} 27... Ke7
{[%clk 0:03:51.9]} 28. h3 {[%clk 0:02:38.9]} 28... fxe5 {[%clk 0:03:49.6]} 29.
dxe5 {[%clk 0:02:37.1]} 29... Rc4 {[%clk 0:03:46.1]} 30. g4 {[%clk 0:02:35.2]}
30... Re4+ {[%clk 0:03:43.8]} 31. Kf3 {[%clk 0:02:34.4]} 31... hxg4+ {[%clk
0:03:43.2]} 32. hxg4 {[%clk 0:02:34.3]} 32... g5 {[%clk 0:03:40.8]} 33. f5
{[%clk 0:02:29.9]} 33... Rxe5 {[%clk 0:03:39.4]} 34. fxe6 {[%clk 0:02:28.2]}
34... Kxe6 {[%clk 0:03:37.9]} 35. a3 {[%clk 0:02:20.1]} 35... Kd6 {[%clk
0:03:35.8]} 36. Kf2 {[%clk 0:02:09]} 36... Re4 {[%clk 0:03:34.1]} 37. Kf3 {[%clk
0:02:08.4]} 37... a5 {[%clk 0:03:31.5]} 38. Rd3 {[%clk 0:02:02]} 38... b5 {[%clk
0:03:30.1]} 39. Rb3 {[%clk 0:01:55.9]} 39... b4 {[%clk 0:03:28.4]} 40. axb4
{[%clk 0:01:53.2]} 40... Rxb4 {[%clk 0:03:26.5]} 41. Ra3 {[%clk 0:01:47.2]}
41... a4 {[%clk 0:03:25.5]} 42. Ke3 {[%clk 0:01:39.9]} 42... Rb3+ {[%clk
0:03:16.8]} 43. Rxb3 {[%clk 0:01:38.7]} 43... axb3 {[%clk 0:03:15.8]} 44. Kd3
{[%clk 0:01:34.9]} 44... Ke5 {[%clk 0:03:14.6]} 45. Kc3 {[%clk 0:01:34.1]} 45...
Kf4 {[%clk 0:03:13.6]} 46. Kxb3 {[%clk 0:01:32.8]} 46... Kxg4 {[%clk 0:03:12.5]}
47. Kc3 {[%clk 0:01:30.3]} 47... Kf5 {[%clk 0:03:05.5]} 48. Kd4 {[%clk
0:01:27.8]} 48... Ke6 {[%clk 0:02:59.3]} 49. b4 {[%clk 0:01:24]} 49... g4 {[%clk
0:02:58.4]} 50. Ke3 {[%clk 0:01:22.3]} 50... Ke5 {[%clk 0:02:57.2]} 51. b5
{[%clk 0:01:20.7]} 51... d4+ {[%clk 0:02:56.1]} 52. Ke2 {[%clk 0:01:17]} 52...
g3 {[%clk 0:02:51.7]} 53. b6 {[%clk 0:01:14.2]} 53... Kd6 {[%clk 0:02:50.6]} 54.
b7 {[%clk 0:01:13.4]} 54... Kc7 {[%clk 0:02:49.6]} 55. Kd3 {[%clk 0:01:12.5]}
55... g2 {[%clk 0:02:48.5]} 56. Kxd4 {[%clk 0:01:12.4]} 56... g1=Q+ {[%clk
0:02:46.4]} 57. Kd5 {[%clk 0:01:12.3]} 0-1

[Event "Live Chess"]
[Site "Chess.com"]
[Date "2023.05.21"]
[Round "-"]
[White "OleksiyJr1"]
[Black "luckywookie"]
[Result "1-0"]
[WhiteElo "1043"]
[BlackElo "811"]
[TimeControl "300"]
[EndTime "7:32:08 PDT"]
[Termination "OleksiyJr1 won on time"]

1. e4 {[%clk 0:04:55]} 1... c6 {[%clk 0:04:58.9]} 2. Nf3 {[%clk 0:04:54.4]} 2...
d5 {[%clk 0:04:58]} 3. e5 {[%clk 0:04:48]} 3... g6 {[%clk 0:04:52.6]} 4. d4
{[%clk 0:04:47.9]} 4... Bg7 {[%clk 0:04:50.7]} 5. Nc3 {[%clk 0:04:44.5]} 5... e6
{[%clk 0:04:49.9]} 6. Bd3 {[%clk 0:04:42.7]} 6... Ne7 {[%clk 0:04:46.5]} 7. Ne2
{[%clk 0:04:36.1]} 7... Qb6 {[%clk 0:04:37]} 8. O-O {[%clk 0:04:28.1]} 8... Nd7
{[%clk 0:04:31]} 9. Ng3 {[%clk 0:04:07.9]} 9... Nf5 {[%clk 0:04:19.2]} 10. Nxf5
{[%clk 0:04:03.6]} 10... gxf5 {[%clk 0:04:16.1]} 11. b3 {[%clk 0:04:02.3]} 11...
c5 {[%clk 0:04:10.6]} 12. c4 {[%clk 0:03:49.9]} 12... cxd4 {[%clk 0:04:06.4]}
13. cxd5 {[%clk 0:03:48.2]} 13... Nc5 {[%clk 0:03:33.2]} 14. Bc4 {[%clk
0:03:44.6]} 14... Ne4 {[%clk 0:03:07.7]} 15. dxe6 {[%clk 0:03:36.6]} 15... fxe6
{[%clk 0:03:04.6]} 16. Nxd4 {[%clk 0:03:32.5]} 16... Nc3 {[%clk 0:02:52.3]} 17.
Qd3 {[%clk 0:03:25.2]} 17... Bxe5 {[%clk 0:02:36.7]} 18. Qxc3 {[%clk 0:03:21.6]}
18... Bxd4 {[%clk 0:02:35.3]} 19. Qd3 {[%clk 0:03:17.8]} 19... Bxa1 {[%clk
0:02:31.2]} 20. Re1 {[%clk 0:03:14]} 20... Bd4 {[%clk 0:01:57.1]} 21. Qxf5
{[%clk 0:03:09.6]} 21... Rf8 {[%clk 0:01:40.3]} 22. Qh5+ {[%clk 0:03:05.1]}
22... Rf7 {[%clk 0:01:29.9]} 23. Kf1 {[%clk 0:02:54.8]} 23... Bxf2 {[%clk
0:01:23.3]} 24. Re2 {[%clk 0:02:47.7]} 24... Be3+ {[%clk 0:01:16.4]} 25. Ke1
{[%clk 0:02:41.3]} 25... Bf2+ {[%clk 0:01:11.7]} 26. Kd1 {[%clk 0:02:30.6]}
26... Qd6+ {[%clk 0:01:05.1]} 27. Rd2 {[%clk 0:02:24.5]} 27... Qe7 {[%clk
0:00:24.3]} 28. Rxf2 {[%clk 0:02:16.6]} 28... Bd7 {[%clk 0:00:19.3]} 29. g4
{[%clk 0:02:10]} 29... O-O-O {[%clk 0:00:17.9]} 30. Rc2 {[%clk 0:02:04.9]} 30...
Bb5+ {[%clk 0:00:05.2]} 31. Bd2 {[%clk 0:02:00.4]} 31... Rxd2+ {[%clk
0:00:02.7]} 32. Kxd2 {[%clk 0:01:56.9]} 32... Bxc4 {[%clk 0:00:02.1]} 33. Rxc4+
{[%clk 0:01:55.5]} 33... Kd8 {[%clk 0:00:01.6]} 34. Qa5+ {[%clk 0:01:53.5]} 1-0

[Event "Live Chess"]
[Site "Chess.com"]
[Date "2023.05.21"]
[Round "-"]
[White "Mikhail_Golubev"]
[Black "raminguy"]
[Result "1-0"]
[WhiteElo "2451"]
[BlackElo "1955"]
[TimeControl "300"]
[EndTime "7:32:12 PDT"]
[Termination "Mikhail_Golubev won by resignation"]

1. e4 {[%clk 0:04:58.4]} 1... e5 {[%clk 0:04:59]} 2. Nf3 {[%clk 0:04:53.4]} 2...
Nc6 {[%clk 0:04:58.3]} 3. Bc4 {[%clk 0:04:48.4]} 3... Bc5 {[%clk 0:04:56.5]} 4.
c3 {[%clk 0:04:46.9]} 4... Nf6 {[%clk 0:04:55.4]} 5. d4 {[%clk 0:04:46.1]} 5...
exd4 {[%clk 0:04:55.3]} 6. cxd4 {[%clk 0:04:45.6]} 6... Bb4+ {[%clk 0:04:54.8]}
7. Nbd2 {[%clk 0:04:45.2]} 7... Nxe4 {[%clk 0:04:53.5]} 8. d5 {[%clk 0:04:43]}
8... Nxd2 {[%clk 0:04:48.6]} 9. Bxd2 {[%clk 0:04:34.9]} 9... Bxd2+ {[%clk
0:04:46.3]} 10. Qxd2 {[%clk 0:04:33.3]} 10... Ne7 {[%clk 0:04:45.3]} 11. h4
{[%clk 0:04:30.8]} 11... O-O {[%clk 0:04:43.1]} 12. h5 {[%clk 0:04:25.2]} 12...
Nf5 {[%clk 0:04:37.7]} 13. Bd3 {[%clk 0:04:11]} 13... Re8+ {[%clk 0:04:36.2]}
14. Kf1 {[%clk 0:04:05.9]} 14... d6 {[%clk 0:04:34.6]} 15. g4 {[%clk 0:04:00.4]}
15... Nh6 {[%clk 0:04:26.4]} 16. g5 {[%clk 0:03:34.4]} 16... Ng4 {[%clk
0:04:24.6]} 17. Qf4 {[%clk 0:03:14.9]} 17... c6 {[%clk 0:04:03.5]} 18. g6 {[%clk
0:02:49.4]} 18... hxg6 {[%clk 0:03:49.9]} 19. hxg6 {[%clk 0:02:43]} 19... fxg6
{[%clk 0:03:11.1]} 20. Bxg6 {[%clk 0:02:34.9]} 20... Rf8 {[%clk 0:03:01.1]} 21.
Bh7+ {[%clk 0:02:31.1]} 21... Kh8 {[%clk 0:02:59.1]} 22. Ne5 {[%clk 0:00:18.7]}
22... Rf6 {[%clk 0:01:10.5]} 23. Ng6+ {[%clk 0:00:15.4]} 23... Rxg6 {[%clk
0:01:09]} 24. Bxg6+ {[%clk 0:00:14.9]} 1-0